bitfinex-derivatives/quotes_BTCF0:USTF0_20240905
["timestamp","ask_amount","ask_price","bid_price","bid_amount"]
[1725539326734,0.002,56581.0,56580.0,0.67495287]
[1725539326930,0.002,56581.0,56580.0,0.58683829]
[1725539327130,0.002,56581.0,56580.0,0.58683575]
[1725539327331,0.002,56581.0,56580.0,0.67495427]
[1725539328331,0.002,56581.0,56580.0,0.091374]
[1725539328528,0.002,56581.0,56580.0,0.16187374]
[1725539328839,0.002,56581.0,56580.0,0.091374]
[1725539330234,0.002,56581.0,56580.0,0.982374]
[1725539330632,0.002,56581.0,56580.0,0.452174]
[1725539331036,0.0002651,56588.0,56587.0,0.088363]
[1725539331239,0.0002651,56588.0,56587.0,0.849526]
[1725539331439,0.0002651,56588.0,56587.0,1.891323]
[1725539331741,0.0002651,56588.0,56587.0,2.065823]
[1725539332044,0.0002651,56588.0,56587.0,1.995823]
[1725539332242,0.0072651,56588.0,56587.0,1.995823]
[1725539332440,0.0112651,56588.0,56587.0,1.995823]
[1725539332641,0.0112651,56588.0,56587.0,1.395823]
[1725539332943,0.0112651,56588.0,56587.0,1.40434535]
[1725539333943,0.0112651,56588.0,56587.0,1.47434535]
[1725539334845,0.0112651,56588.0,56587.0,0.94418535]
[1725539336743,0.0112651,56588.0,56587.0,1.03254835]
[1725539337737,0.3608,56602.0,56598.0,0.088346]
[1725539337738,0.088343,56601.0,56598.0,0.088346]
[1725539337940,0.088343,56600.0,56598.0,0.090346]
[1725539338246,0.449145,56599.0,56598.0,0.090346]
[1725539338746,0.449145,56599.0,56598.0,0.002]
[1725539338948,0.463145,56599.0,56598.0,0.002]
[1725539339143,0.477145,56599.0,56598.0,0.002]
[1725539340344,0.56549,56599.0,56598.0,0.002]
[1725539340549,1.783875,56599.0,56598.0,0.002]
[1725539342650,0.176706,56594.0,56593.0,0.0002651]
[1725539342952,0.849506,56594.0,56593.0,0.0002651]
[1725539343443,1.379586,56594.0,56593.0,0.0002651]
[1725539343638,1.291233,56594.0,56593.0,0.0002651]
[1725539343843,0.761153,56594.0,56593.0,0.0002651]
[1725539344356,0.451153,56594.0,56593.0,0.0002651]
[1725539344654,0.464153,56594.0,56593.0,0.0012651]
[1725539345152,0.475153,56594.0,56593.0,0.0022651]
[1725539345856,0.3868,56594.0,56593.0,0.0906191]
[1725539346447,0.475153,56594.0,56593.0,0.0906191]
[1725539346744,0.785153,56594.0,56593.0,0.0022651]
[1725539348245,0.3868,56594.0,56593.0,0.0906191]
[1725539348750,0.785153,56594.0,56593.0,0.0022651]
[1725539349142,1.403586,56594.0,56593.0,0.0022651]
[1725539349450,2.003586,56594.0,56593.0,0.0022651]
[1725539350142,1.403586,56594.0,56593.0,0.0022651]
[1725539350546,0.3868,56594.0,56593.0,0.0022651]
[1725539350851,0.026,56594.0,56593.0,0.0906191]
[1725539351352,0.026,56594.0,56593.0,0.14352709]
[1725539356148,0.266,56594.0,56593.0,0.14352709]
[1725539358350,0.026,56594.0,56593.0,0.0906191]
[1725539358545,0.026,56594.0,56593.0,0.14356171]
[1725539358742,0.026,56594.0,56593.0,0.0906191]
[1725539359142,0.0002651,56604.0,56603.0,0.088338]
[1725539359358,0.0002651,56604.0,56603.0,0.69978165]
[1725539359757,0.0002651,56604.0,56603.0,0.78811965]
[1725539360057,0.1738,56616.0,56615.0,0.08832]
[1725539360254,0.1738,56616.0,56615.0,0.09032]
[1725539361454,0.009,56616.0,56615.0,0.09132]
[1725539361759,0.009,56616.0,56615.0,0.45212]
[1725539362848,0.01,56616.0,56615.0,0.45312]
[1725539363351,0.0002651,56621.0,56620.0,0.088312]
[1725539363558,0.0002651,56621.0,56620.0,0.090312]
[1725539365255,0.0002651,56621.0,56620.0,0.091312]
[1725539365256,0.0082651,56621.0,56620.0,0.091312]
[1725539365862,0.0152651,56621.0,56620.0,0.092312]
[1725539366249,1.1451051,56621.0,56610.0,0.0002651]
[1725539366450,0.24,56613.0,56612.0,0.088324]
[1725539366663,0.24,56613.0,56610.0,0.0002651]
[1725539366957,0.092326,56611.0,56610.0,0.0002651]
[1725539367257,0.090326,56611.0,56610.0,0.0002651]
[1725539367450,0.090326,56611.0,56610.0,0.0885931]
[1725539367451,0.002,56611.0,56610.0,0.0885931]
[1725539367850,0.002,56611.0,56610.0,0.0895931]
[1725539369557,0.013,56611.0,56610.0,0.0905931]
[1725539369763,0.023,56611.0,56610.0,0.0905931]
[1725539370360,0.024,56611.0,56610.0,0.0905931]
[1725539373065,0.024,56611.0,56610.0,0.3305931]
[1725539373363,0.024,56611.0,56610.0,0.33919496]
[1725539373868,0.024,56611.0,56610.0,0.09919496]
[1725539374862,0.024,56611.0,56610.0,0.0905931]
[1725539375061,0.112326,56611.0,56610.0,0.0022651]
[1725539377263,0.024,56611.0,56610.0,0.1789211]
[1725539377566,0.024,56611.0,56610.0,0.0905931]
[1725539378268,0.024,56611.0,56610.0,0.1789211]
[1725539378665,0.3608,56618.0,56617.0,0.176634]
[1725539378865,0.273903,56626.0,56620.0,0.088312]
[1725539379372,0.08831,56622.0,56620.0,0.088312]
[1725539379670,0.088313,56620.0,56619.0,0.088313]
[1725539379873,0.2402651,56621.0,56620.0,0.088312]
[1725539380173,0.0142651,56621.0,56620.0,0.090312]
[1725539381170,0.0282651,56621.0,56620.0,0.090312]
[1725539386180,0.088295,56631.0,56620.0,1.49264]
[1725539386469,0.088295,56631.0,56630.0,0.330296]
[1725539386874,0.3608,56633.0,56632.0,0.088293]
[1725539387064,0.3608,56633.0,56632.0,0.090293]
[1725539387261,0.271689,56636.0,56634.0,0.088289]
[1725539387467,0.271689,56636.0,56635.0,0.090289]
[1725539388580,0.1834,56636.0,56635.0,0.090289]
[1725539389079,0.37506496,56638.0,56635.0,0.002]
[1725539389383,0.01426496,56638.0,56637.0,0.090285]
[1725539390274,0.34254896,56638.0,56637.0,0.002]
[1725539390474,0.34254896,56638.0,56635.0,0.002]
[1725539390475,0.088287,56636.0,56635.0,0.002]
[1725539390678,0.539374,56636.0,56635.0,0.002]
[1725539390979,0.088299,56628.0,56627.0,0.0002651]
[1725539391179,0.451099,56628.0,56627.0,0.0002651]
[1725539391387,0.451099,56628.0,56627.0,0.0885661]
[1725539391683,0.3628,56628.0,56627.0,0.0885661]
[1725539391977,0.3628,56628.0,56627.0,0.3285661]
[1725539392181,0.002,56628.0,56627.0,0.3285661]
[1725539392785,0.002,56628.0,56627.0,0.0885661]
[1725539393576,0.002,56628.0,56627.0,0.0905661]
[1725539394272,0.002,56628.0,56627.0,0.0895661]
[1725539395478,0.002,56628.0,56627.0,0.0012651]
[1725539395684,0.178598,56628.0,56627.0,0.0012651]
[1725539396484,0.090299,56628.0,56627.0,0.0012651]
[1725539396786,0.3628,56628.0,56627.0,0.0895661]
[1725539397084,0.090299,56628.0,56627.0,0.0895661]
[1725539398178,0.090299,56628.0,56627.0,0.0012651]
[1725539399677,0.090299,56628.0,56627.0,0.0895661]
[1725539399882,0.002,56628.0,56627.0,0.0895661]
[1725539400385,0.08825,56660.0,56653.0,0.088259]
[1725539400593,0.08825,56660.0,56659.0,0.004]
[1725539400594,0.175,56660.0,56659.0,0.004]
[1725539401177,0.175,56660.0,56659.0,0.092251]
[1725539401376,0.3608,56663.0,56661.0,0.088247]
[1725539401583,0.3608,56663.0,56662.0,0.004]
[1725539402075,1.49024,56663.0,56662.0,0.004]
[1725539402275,1.578485,56663.0,56662.0,0.004]
[1725539402475,1.578485,56663.0,56635.0,0.14101436]
[1725539402476,0.088274,56645.0,56635.0,0.14101436]
[1725539402690,0.617726,56662.0,56634.0,0.3608]
[1725539402691,0.539,56644.0,56634.0,0.3608]
[1725539402876,0.539,56644.0,56638.0,0.088284]
[1725539403079,0.3608,56639.0,56628.0,0.05272736]
[1725539403287,0.3608,56639.0,56633.0,0.088292]
[1725539403288,0.3608,56634.0,56633.0,0.088292]
[1725539403475,0.3608,56634.0,56628.0,0.00026486]
[1725539403683,0.36106405,56639.0,56633.0,0.37]
[1725539403991,0.36106405,56639.0,56638.0,0.004]
[1725539404180,0.36106405,56639.0,56638.0,0.092284]
[1725539404488,0.00026405,56639.0,56638.0,0.092284]
[1725539404881,0.3608,56652.0,56651.0,0.088264]
[1725539405082,0.3608,56660.0,56651.0,0.004]
[1725539405386,0.1782,56662.0,56651.0,0.004]
[1725539405387,0.1782,56662.0,56654.0,0.3608]
[1725539405584,0.004,56663.0,56661.0,0.004]
[1725539405788,0.004,56663.0,56662.0,0.092246]
[1725539405985,0.004,56663.0,56662.0,0.004]
[1725539406189,0.004,56663.0,56662.0,0.092246]
[1725539406582,0.3608,56676.0,56662.0,1.13344]
[1725539406785,0.3608,56687.0,56675.0,0.004]
[1725539407085,0.3608,56687.0,56679.0,0.3608]
[1725539407290,0.15562242,56717.0,56679.0,0.3608]
[1725539407291,0.3608,56693.0,56684.0,0.3608]
[1725539407485,0.3608,56699.0,56690.0,0.7308]
[1725539407792,0.3608,56699.0,56686.0,0.004]
[1725539407793,0.3608,56710.0,56698.0,0.3648]
[1725539408092,0.12287672,56737.0,56709.0,0.374]
[1725539408093,0.274576,56722.0,56709.0,0.374]
[1725539408295,0.3608,56737.0,56721.0,0.3648]
[1725539408296,0.3608,56730.0,56721.0,0.3648]
[1725539408482,0.3508,56722.0,56721.0,0.004]
[1725539408788,0.3608,56730.0,56722.0,0.088152]
[1725539408989,0.3608,56737.0,56729.0,0.004]
[1725539409287,0.3608,56737.0,56736.0,0.374]
[1725539409494,0.3608,56758.0,56736.0,0.458131]
[1725539409698,0.3608,56758.0,56757.0,0.004]
[1725539409992,0.3608,56766.0,56757.0,0.3648]
[1725539410311,0.00855029,56788.0,56765.0,0.7348]
[1725539410312,0.3608,56788.0,56765.0,0.7348]
[1725539410479,0.3608,56788.0,56787.0,0.004]
[1725539410676,1.85908,56788.0,56771.0,0.00026436]
[1725539410879,1.85908,56788.0,56756.0,0.3608]
[1725539410880,0.088079,56770.0,56756.0,0.3608]
[1725539411080,0.3608,56772.0,56761.0,0.3608]
[1725539411294,0.1855,56777.0,56761.0,0.3608]
[1725539411494,0.1855,56777.0,56776.0,0.004]
[1725539411791,0.3608,56786.0,56776.0,0.004]
[1725539411995,0.004,56788.0,56776.0,0.004]
[1725539411996,0.004,56788.0,56785.0,0.3648]
[1725539412184,0.088015,56812.0,56785.0,0.3648]
[1725539412381,0.3608,56818.0,56785.0,0.3648]
[1725539412382,0.3608,56818.0,56809.0,0.3608]
[1725539412597,0.3608,56821.0,56817.0,0.004]
[1725539412888,0.1855,56830.0,56820.0,0.3608]
[1725539413084,0.3608,56837.0,56829.0,0.004]
[1725539413280,0.448775,56837.0,56836.0,0.004]
[1725539413486,0.52788,56836.0,56819.0,0.00026412]
[1725539413688,0.52788,56836.0,56801.0,0.3608]
[1725539413689,0.088015,56811.0,56801.0,0.3608]
[1725539413890,0.088019,56809.0,56801.0,0.3608]
[1725539414191,0.073031,56801.0,56800.0,0.00026412]
[1725539414386,0.088036,56798.0,56791.0,0.3608]
[1725539414588,0.3608,56803.0,56795.0,0.00026412]
[1725539414589,0.088038,56796.0,56795.0,0.00026412]
[1725539414796,0.52824,56795.0,56775.0,0.3608]
[1725539415090,0.37,56799.0,56775.0,0.3608]
[1725539415091,0.3608,56786.0,56775.0,0.3608]
[1725539415293,0.3608,56778.0,56769.0,0.3608]
[1725539415678,0.088073,56774.0,56769.0,0.3608]
[1725539415987,0.3608,56771.0,56768.0,0.00026412]
[1725539416288,0.088079,56770.0,56768.0,0.00026412]
[1725539416495,0.088079,56770.0,56752.0,0.3608]
[1725539416496,0.3608,56769.0,56752.0,0.3608]
[1725539416694,0.3608,56761.0,56746.0,0.3608]
[1725539416991,0.3608,56767.0,56746.0,0.3608]
[1725539417289,0.088096,56759.0,56746.0,0.3608]
[1725539417786,0.3608,56751.0,56747.0,0.00026412]
[1725539417992,0.3608,56751.0,56728.0,0.3608]
[1725539417993,0.3608,56748.0,56728.0,0.3608]
[1725539418179,0.3608,56743.0,56728.0,0.7308]
[1725539418490,0.3608,56743.0,56728.0,0.37]
[1725539418683,0.3608,56743.0,56728.0,0.7308]
[1725539418893,0.3608,56739.0,56723.0,0.3608]
[1725539419086,0.3608,56739.0,56729.0,0.00026435]
[1725539419485,0.00026435,56740.0,56729.0,0.00026435]
[1725539419691,0.00026435,56740.0,56739.0,0.002]
[1725539420199,1.12898435,56740.0,56729.0,0.00026435]
[1725539420390,1.12898435,56740.0,56719.0,0.088157]
[1725539420391,0.7236,56730.0,56719.0,0.088157]
[1725539420590,0.7236,56730.0,56713.0,0.3608]
[1725539420591,0.002,56720.0,56713.0,0.3608]
[1725539420790,0.002,56714.0,56713.0,0.3608]
[1725539421485,0.002,56714.0,56708.0,0.3608]
[1725539421486,0.088169,56712.0,56708.0,0.00026435]
[1725539421686,0.3628,56709.0,56708.0,0.00026435]
[1725539421986,0.00026435,56719.0,56708.0,0.36106435]
[1725539422189,0.3608,56751.0,56718.0,0.3628]
[1725539422403,0.088128,56739.0,56725.0,0.3608]
[1725539422695,0.088128,56739.0,56718.0,0.002]
[1725539422696,0.088153,56722.0,56718.0,0.002]
[1725539422899,0.3608,56727.0,56705.0,0.3608]
[1725539422900,0.002,56719.0,56705.0,0.3608]
[1725539423084,0.002,56706.0,56705.0,0.3608]
[1725539423285,0.3628,56719.0,56705.0,0.3608]
[1725539423485,0.00026435,56711.0,56705.0,0.3608]
[1725539424091,0.00026435,56711.0,56701.0,0.3608]
[1725539424398,0.3628,56702.0,56691.0,0.00096]
[1725539424700,0.002,56692.0,56687.0,0.088206]
[1725539424893,0.002,56692.0,56686.0,0.3608]
[1725539424894,0.002,56692.0,56688.0,0.088205]
[1725539425099,0.3608,56704.0,56686.0,0.3608]
[1725539425288,0.002,56687.0,56686.0,0.3608]
[1725539425490,0.00026459,56692.0,56686.0,0.3608]
[1725539425683,0.00026459,56692.0,56691.0,0.002]
[1725539425889,0.00026459,56692.0,56691.0,0.3628]
[1725539426089,1e-08,56692.0,56691.0,1.49196]
[1725539426300,1e-08,56692.0,56691.0,1.25196]
[1725539426491,0.176,56718.0,56691.0,0.7228]
[1725539426492,0.36,56711.0,56691.0,0.7228]
[1725539426795,0.36,56711.0,56696.0,0.3608]
[1725539426991,0.3608,56710.0,56701.0,0.3608]
[1725539427194,0.3608,56715.0,56707.0,0.3608]
[1725539427390,0.3608,56715.0,56714.0,0.002]
[1725539427692,1.84976,56715.0,56705.0,0.00026459]
[1725539427896,0.3628,56706.0,56687.0,0.448207]
[1725539428093,0.002,56688.0,56684.0,0.3608]
[1725539428400,0.3608,56700.0,56689.0,0.088203]
[1725539428597,0.3608,56700.0,56699.0,0.002]
[1725539428803,0.3608,56700.0,56689.0,0.088203]
[1725539428991,0.002,56690.0,56689.0,0.00026459]
[1725539429192,0.5312,56690.0,56689.0,0.00026459]
[1725539429396,1.49,56690.0,56669.0,0.3608]
[1725539429598,0.1795,56705.0,56674.0,0.3608]
[1725539429599,0.3608,56680.0,56674.0,0.3608]
[1725539429898,0.3608,56685.0,56674.0,0.3608]
[1725539430091,0.3608,56679.0,56665.0,0.36]
[1725539430290,0.3608,56679.0,56648.0,0.088267]
[1725539430291,0.449011,56685.0,56676.0,0.36]
[1725539430496,0.449011,56685.0,56684.0,0.002]
[1725539430698,0.89008,56685.0,56676.0,0.088224]
[1725539430903,0.002,56677.0,56675.0,0.00026459]
[1725539431105,0.002,56676.0,56675.0,0.44929059]
[1725539431300,0.3608,56685.0,56675.0,0.44929059]
[1725539431501,0.3608,56685.0,56684.0,0.002]
[1725539431695,0.00026459,56686.0,56684.0,0.002]
[1725539431894,0.00026459,56686.0,56685.0,0.002]
[1725539431895,0.60026459,56686.0,56685.0,0.002]
[1725539432089,0.00026459,56686.0,56685.0,0.002]
[1725539432407,0.00026459,56686.0,56675.0,0.00026459]
[1725539432408,0.088225,56676.0,56675.0,0.00026459]
[1725539432703,0.088225,56676.0,56653.0,0.3608]
[1725539432704,0.811825,56676.0,56653.0,0.3608]
[1725539432891,0.002,56654.0,56653.0,0.3608]
[1725539433096,0.002,56654.0,56648.0,0.3608]
[1725539433292,0.002,56649.0,56648.0,0.3608]
[1725539433490,0.002,56654.0,56648.0,0.3608]
[1725539433901,0.002,56654.0,56653.0,0.362]
[1725539434100,0.002,56654.0,56653.0,0.3628]
[1725539434309,0.00026459,56657.0,56653.0,1.49232]
[1725539434606,0.36,56734.0,56670.0,0.36]
[1725539434607,0.0882,56693.0,56670.0,0.36]
[1725539434795,0.3608,56698.0,56663.0,0.088244]
[1725539434796,0.3608,56698.0,56692.0,0.002]
[1725539434991,0.3608,56698.0,56697.0,0.002]
[1725539435190,0.3608,56698.0,56692.0,0.002]
[1725539435409,0.002,56693.0,56692.0,0.002]
[1725539435598,0.088198,56694.0,56692.0,0.002]
[1725539435791,0.088198,56694.0,56693.0,0.002]
[1725539436012,1.048198,56694.0,56693.0,0.002]
[1725539436197,0.088221,56679.0,56675.0,0.3608]
[1725539436506,0.002,56676.0,56674.0,0.3608]
[1725539436698,0.002,56675.0,56674.0,0.3608]
[1725539437204,0.53132,56675.0,56674.0,0.3608]
[1725539437404,0.002,56675.0,56674.0,0.3608]
[1725539437790,0.3608,56702.0,56674.0,1.49012]
[1725539437996,0.3608,56702.0,56667.0,0.3608]
[1725539437997,0.3608,56697.0,56685.0,0.3608]
[1725539438205,0.088204,56690.0,56685.0,0.3608]
[1725539438799,0.448204,56690.0,56685.0,0.3608]
[1725539439009,0.00026459,56693.0,56685.0,0.3608]
[1725539439316,0.3608,56686.0,56682.0,0.00026459]
[1725539439609,0.3608,56691.0,56682.0,0.00026459]
[1725539439610,0.3608,56691.0,56682.0,1e-08]
[1725539439797,0.3608,56691.0,56690.0,0.002]
[1725539440324,0.00026459,56693.0,56692.0,0.0882]
[1725539440499,0.00026459,56693.0,56692.0,0.0902]
[1725539441509,0.088167,56713.0,56692.0,0.002]
[1725539441704,0.9107,56718.0,56712.0,0.002]
[1725539441705,0.5507,56718.0,56712.0,0.002]
[1725539441903,0.088168,56713.0,56712.0,0.002]
[1725539442203,0.36,56729.0,56712.0,0.3628]
[1725539442399,0.00026459,56726.0,56718.0,0.3608]
[1725539442607,0.00026459,56726.0,56724.0,0.3608]
[1725539444299,0.00026459,56726.0,56724.0,0.448949]
[1725539444509,0.00026459,56726.0,56725.0,0.36]
[1725539445203,0.00026459,56726.0,56724.0,0.36184]
[1725539445401,0.3608,56737.0,56724.0,0.36184]
[1725539445402,0.002,56725.0,56724.0,0.3608]
[1725539445912,0.002,56725.0,56724.0,0.7208]
[1725539446409,0.002,56725.0,56715.0,0.00026459]
[1725539446410,0.3628,56725.0,56715.0,0.00026459]
[1725539446607,0.002,56716.0,56715.0,0.00026459]
[1725539446911,0.7228,56716.0,56715.0,0.00026459]
[1725539447115,0.89096,56716.0,56715.0,0.00026459]
[1725539447298,1.13096,56716.0,56715.0,0.36102459]
[1725539447502,0.002,56716.0,56715.0,0.36102459]
[1725539448818,0.002,56716.0,56715.0,0.00022459]
[1725539449402,1.579122,56716.0,56715.0,0.00022459]
[1725539449708,1.219122,56716.0,56715.0,0.00022459]
[1725539450010,0.53096,56716.0,56715.0,0.00022459]
[1725539450212,1.13096,56716.0,56715.0,0.00022459]
[1725539450418,0.002,56716.0,56715.0,0.00022459]
[1725539450606,0.002,56716.0,56715.0,0.08838859]
[1725539450912,0.3608,56733.0,56722.0,0.088153]
[1725539451105,0.3608,56733.0,56715.0,0.52918459]
[1725539451106,0.3608,56733.0,56729.0,0.002]
[1725539451512,0.08840559,56730.0,56729.0,0.002]
[1725539451714,1.21724559,56730.0,56729.0,0.002]
[1725539452117,0.00026459,56730.0,56729.0,0.002]
[1725539452617,1.21724559,56730.0,56729.0,0.002]
[1725539452818,0.61724559,56730.0,56729.0,0.002]
[1725539453024,1.21724559,56730.0,56729.0,0.002]
[1725539453419,0.08840559,56730.0,56729.0,0.002]
[1725539453717,0.00026459,56730.0,56729.0,0.090142]
[1725539455410,0.00026459,56730.0,56729.0,0.002]
[1725539455807,0.08840559,56730.0,56729.0,0.002]
[1725539456119,0.61724559,56730.0,56729.0,0.002]
[1725539456418,0.52910459,56730.0,56729.0,0.002]
[1725539456619,0.00026459,56730.0,56729.0,0.002]
[1725539456821,0.00026459,56730.0,56729.0,0.090142]
[1725539457122,0.00026459,56730.0,56729.0,0.450142]
[1725539457309,1e-08,56730.0,56729.0,1.667124]
[1725539457722,1e-08,56730.0,56729.0,1.578982]
[1725539458117,0.3608,56756.0,56747.0,0.088114]
[1725539458316,0.7208,56758.0,56755.0,0.002]
[1725539458515,0.0881,56756.0,56755.0,0.002]
[1725539459223,1.5775,56756.0,56755.0,0.002]
[1725539459821,1.6656,56756.0,56755.0,0.002]
[1725539460013,1.6656,56756.0,56750.0,0.00026435]
[1725539460014,0.176216,56751.0,56750.0,0.00026435]
[1725539460213,0.7228,56751.0,56734.0,0.3608]
[1725539460413,0.002,56735.0,56734.0,0.3608]
[1725539460612,0.36,56743.0,56734.0,0.3608]
[1725539460812,0.36,56743.0,56742.0,0.002]
[1725539461020,0.088122,56742.0,56734.0,0.3608]
[1725539461219,0.02304001,56743.0,56734.0,0.7208]
[1725539461526,0.088121,56743.0,56742.0,0.002]
[1725539461712,0.36,56750.0,56742.0,0.002]
[1725539461914,0.36,56744.0,56732.0,0.00026435]
[1725539462114,0.088136,56733.0,56732.0,0.00026435]
[1725539462538,0.08813,56737.0,56732.0,0.00026435]
[1725539462714,0.08813,56737.0,56736.0,0.004]
[1725539462913,0.00026435,56738.0,56737.0,0.08813]
[1725539463111,0.00026435,56738.0,56737.0,0.09213]
[1725539463418,0.08839235,56738.0,56737.0,0.004]
[1725539464316,2.02608035,56738.0,56737.0,0.004]
[1725539464628,2.18420835,56738.0,56737.0,1e-08]
[1725539464827,0.088136,56733.0,56732.0,0.00026435]
[1725539465016,0.448936,56733.0,56732.0,0.00026435]
[1725539465218,0.088136,56733.0,56732.0,0.00026435]
[1725539465413,0.44919335,56738.0,56732.0,0.00026435]
[1725539465616,0.537072,56733.0,56732.0,0.00026435]
[1725539465828,0.088139,56732.0,56714.0,0.3608]
[1725539466018,0.36,56723.0,56714.0,0.3608]
[1725539466213,0.3608,56725.0,56714.0,0.3608]
[1725539466520,0.448948,56725.0,56724.0,0.004]
[1725539466727,0.977828,56725.0,56724.0,0.004]
[1725539466928,0.088156,56720.0,56719.0,0.00026435]
[1725539467127,0.897112,56720.0,56719.0,0.00026435]
[1725539467332,1.577876,56720.0,56719.0,0.00026435]
[1725539467522,0.088156,56720.0,56719.0,0.00026435]
[1725539468123,0.3608,56725.0,56719.0,0.00026435]
[1725539468429,0.00026435,56730.0,56724.0,0.004]
[1725539468614,0.088156,56720.0,56719.0,0.36106435]
[1725539468922,0.448956,56720.0,56719.0,0.00026435]
[1725539469124,1.577876,56720.0,56719.0,0.00026435]
[1725539469530,1.577876,56720.0,56704.0,0.3608]
[1725539469531,1.48972,56720.0,56704.0,0.3608]
[1725539469725,0.36,56705.0,56698.0,0.05223842]
[1725539469929,0.448188,56700.0,56697.0,0.41395842]
[1725539470126,0.448188,56700.0,56694.0,0.06965123]
[1725539470127,0.36,56700.0,56694.0,0.05257761]
[1725539470432,0.36,56695.0,56688.0,0.3608]
[1725539470733,0.3608,56697.0,56691.0,0.00026435]
[1725539470734,0.0882,56692.0,56691.0,0.00026435]
[1725539471039,0.4482,56692.0,56691.0,0.00026435]
[1725539471218,1.57736,56692.0,56691.0,0.00026435]
[1725539471419,0.088203,56691.0,56673.0,0.41337761]
[1725539471628,0.36,56675.0,56673.0,0.3608]
[1725539471930,0.448227,56675.0,56673.0,0.3608]
[1725539472138,0.36,56675.0,56662.0,0.05257761]
[1725539472321,0.3608,56677.0,56665.0,0.3608]
[1725539472322,0.088239,56667.0,56665.0,0.3608]
[1725539472723,0.36,56670.0,56663.0,0.00013966]
[1725539472724,0.088242,56665.0,56663.0,0.00013966]
[1725539472932,0.3608,56669.0,56663.0,0.00013966]
[1725539473131,0.00026458,56674.0,56668.0,0.004]
[1725539473436,0.00026458,56674.0,56673.0,0.004]
[1725539473621,0.00026458,56674.0,56670.0,0.3608]
[1725539473820,0.00026458,56674.0,56670.0,0.449033]
[1725539474031,0.00026458,56674.0,56668.0,0.004]
[1725539474032,0.36,56671.0,56668.0,0.004]
[1725539474426,0.088235,56670.0,56668.0,0.004]
[1725539474626,0.36,56671.0,56668.0,0.004]
[1725539475134,0.00026458,56674.0,56670.0,0.004]
[1725539475328,0.00026458,56674.0,56673.0,0.3648]
[1725539476222,0.3608,56691.0,56673.0,1.49416]
[1725539476422,0.3608,56691.0,56690.0,0.004]
[1725539477237,0.36,56691.0,56690.0,0.004]
[1725539477431,0.1842,56696.0,56690.0,0.3648]
[1725539477432,0.00026458,56696.0,56690.0,0.3648]
[1725539477628,0.00026458,56696.0,56695.0,0.3648]
[1725539480925,0.088167,56713.0,56695.0,1.49396]
[1725539481235,0.00104001,56717.0,56712.0,0.004]
[1725539481428,0.08816,56718.0,56716.0,0.004]
[1725539481737,0.088152,56723.0,56717.0,0.3608]
[1725539481932,0.088152,56723.0,56722.0,0.004]
[1725539482232,0.00026458,56726.0,56722.0,0.004]
[1725539482433,0.00026458,56726.0,56725.0,0.004]
[1725539482936,1.12914458,56726.0,56725.0,0.004]
[1725539483331,1.12914458,56726.0,56716.0,0.004]
[1725539483332,0.088161,56717.0,56716.0,0.004]
[1725539483526,0.090161,56717.0,56716.0,0.004]
[1725539484331,0.002,56717.0,56716.0,0.004]
[1725539484537,0.002,56717.0,56715.0,0.088163]
[1725539484840,0.36106458,56726.0,56715.0,0.088163]
[1725539484841,0.002,56716.0,56715.0,0.088163]
[1725539485636,0.00026458,56726.0,56719.0,0.088157]
[1725539485834,0.00026458,56726.0,56725.0,0.3628]
[1725539486140,0.08841158,56726.0,56725.0,0.3628]
[1725539486344,0.44841158,56726.0,56725.0,0.3628]
[1725539486545,0.088163,56716.0,56714.0,0.36106458]
[1725539486737,0.002,56715.0,56714.0,0.36106458]
[1725539486936,0.3748,56732.0,56731.0,0.088139]
[1725539486937,0.014,56732.0,56731.0,0.088139]
[1725539487134,0.08811,56750.0,56731.0,1.6124]
[1725539487337,0.3608,56757.0,56746.0,0.3608]
[1725539487635,0.448104,56754.0,56746.0,0.3608]
[1725539487844,0.36,56754.0,56746.0,0.3608]
[1725539488044,0.00026435,56756.0,56746.0,0.3608]
[1725539488241,0.08836435,56756.0,56755.0,0.002]
[1725539488433,0.00226435,56756.0,56746.0,0.3608]
[1725539488739,0.002,56747.0,56746.0,0.3608]
[1725539489339,0.00226435,56756.0,56746.0,1.48948]
[1725539489538,0.00226435,56756.0,56755.0,0.3628]
[1725539490254,0.448867,56778.0,56755.0,1.4914]
[1725539490543,0.3608,56784.0,56777.0,0.004]
[1725539490544,0.448865,56779.0,56777.0,0.004]
[1725539490739,0.448865,56779.0,56778.0,0.004]
[1725539490943,0.977225,56779.0,56778.0,0.004]
[1725539491241,0.977225,56779.0,56768.0,0.3608]
[1725539491242,0.088074,56773.0,56772.0,0.00026435]
[1725539491543,0.088071,56776.0,56772.0,0.00026435]
[1725539491739,0.088071,56776.0,56775.0,0.004]
[1725539491943,0.3648,56779.0,56775.0,0.004]
[1725539492137,0.3648,56779.0,56778.0,0.004]
[1725539492332,0.3648,56779.0,56772.0,0.00026435]
[1725539492333,1.48916,56779.0,56772.0,0.00026435]
[1725539492542,0.89716,56779.0,56772.0,0.00026435]
[1725539492735,0.3688,56779.0,56772.0,0.00026435]
[1725539493138,0.3688,56779.0,56768.0,0.448881]
[1725539493139,0.08808,56769.0,56768.0,0.00108]
[1725539493444,0.08808,56769.0,56757.0,0.3608]
[1725539493445,0.08809,56763.0,56757.0,0.3608]
[1725539493643,0.7208,56769.0,56757.0,0.3608]
[1725539493944,0.3608,56759.0,56746.0,0.088115]
[1725539494146,0.088102,56755.0,56747.0,0.00026435]